{"text_format":"3","workbook":"xlsx","n_sheets":3,"sheets":["Izveštaj o mesečnom budžetu","Mesečni troškovi","Dodatni podaci"],"not_rendered":{"charts":1,"external_links":1,"defined_names":4,"pivot_tables":2},"read":"whole","date_system":"1900"}

{"sheet":"Izveštaj o mesečnom budžetu","index":0,"n_rows":34,"n_cols":14,"rows_kept":34,"merged":[[7,1,10,1],[7,5,10,5],[7,6,10,6],[12,1,16,1],[12,5,16,5],[12,6,16,6]]}
[null,"Pregled budžeta",{"$nulls":7},"Rezime budžeta"]
[null,"Bilans"]
[null,"Predviđeni bilans","(predviđeni minus troškovi)",{"$nulls":3},{"$f":"D17-SUM(DetaljiBudžeta[Predviđeni trošak])","v":{"v":1585,"d":"1,585 RSD"}}]
[null,"Stvarni bilans ","(stvarni minus troškovi)",{"$nulls":3},{"$f":"D11-SUM(DetaljiBudžeta[Stvarni trošak])","v":{"v":1740,"d":"1,740 RSD"}}]
[null,"Razlika","(stvarni minus predviđeni)",{"$nulls":3},{"$f":"G4-G3","v":{"v":155,"d":"155 RSD"}}]
[]
[null,"Prihod",{"$nulls":3},"Troškovi",{"$nulls":3},"Kliknite desnim tasterom miša na izvedenu tabelu u nastavku i kliknite na dugme Osveži da biste ažurirali"]
[null,"STVARNO","Prihod 1",{"v":5800,"d":"5,800 RSD"},null,"STVARNO",{"$f":"SUM(DetaljiBudžeta[Stvarni trošak])","v":{"v":7860,"d":"7,860 RSD"}}]
[null,null,"Prihod 2",{"v":2300,"d":"2,300 RSD"},{"$nulls":6},"Kategorija","Predviđeni trošak ","Stvarni trošak ","Razlika "]
[null,null,"Dodatni prihod",{"v":1500,"d":"1,500 RSD"},{"$nulls":6},"Deca",{"v":140,"d":"140 RSD"},{"v":140,"d":"140 RSD"},{"v":0,"d":"0 RSD"}]
[null,null,"Ukupni prihod",{"$f":"SUM(D8:D10)","v":{"v":9600,"d":"9,600 RSD"}}]
[{"$nulls":10},"Domaćinstvo",{"v":2830,"d":"2,830 RSD"},{"v":2702,"d":"2,702 RSD"},{"v":128,"d":"128 RSD"}]
[null,"PREDVIĐENO",{"$nulls":3},"PREDVIĐENO",{"$f":"SUM(DetaljiBudžeta[Predviđeni trošak])","v":{"v":7915,"d":"7,915 RSD"}}]
[null,null,"Prihod 1",{"v":6000,"d":"6,000 RSD"},{"$nulls":6},"Hrana",{"v":1100,"d":"1,100 RSD"},{"v":1320,"d":"1,320 RSD"},{"v":-220,"d":"-220 RSD"}]
[null,null,"Prihod 2",{"v":1000,"d":"1,000 RSD"}]
[null,null,"Dodatni prihod",{"v":2500,"d":"2,500 RSD"},{"$nulls":6},"Lična nega",{"v":150,"d":"150 RSD"},{"v":140,"d":"140 RSD"},{"v":10,"d":"10 RSD"}]
[null,null,"Ukupni prihod",{"$f":"SUM(D14:D16)","v":{"v":9500,"d":"9,500 RSD"}}]
[{"$nulls":10},"Ljubimci",{"v":170,"d":"170 RSD"},{"v":100,"d":"100 RSD"},{"v":70,"d":"70 RSD"}]
[]
[{"$nulls":10},"Osiguranje",{"v":900,"d":"900 RSD"},{"v":900,"d":"900 RSD"},{"v":0,"d":"0 RSD"}]
[]
[{"$nulls":10},"Pokloni i dobrotvorne organizacije",{"v":100,"d":"100 RSD"},{"v":125,"d":"125 RSD"},{"v":-25,"d":"-25 RSD"}]
[]
[{"$nulls":10},"Porezi",{"v":300,"d":"300 RSD"},{"v":300,"d":"300 RSD"},{"v":0,"d":"0 RSD"}]
[]
[{"$nulls":10},"Prevoz",{"v":1425,"d":"1,425 RSD"},{"v":1375,"d":"1,375 RSD"},{"v":50,"d":"50 RSD"}]
[]
[{"$nulls":10},"Štednja ili ulaganja",{"v":200,"d":"200 RSD"},{"v":200,"d":"200 RSD"},{"v":0,"d":"0 RSD"}]
[]
[{"$nulls":10},"Zabava",{"v":400,"d":"400 RSD"},{"v":358,"d":"358 RSD"},{"v":42,"d":"42 RSD"}]
[]
[{"$nulls":10},"Zajmovi",{"v":200,"d":"200 RSD"},{"v":200,"d":"200 RSD"},{"v":0,"d":"0 RSD"}]
[]
[{"$nulls":10},"Konačni zbir",{"v":7915,"d":"7,915 RSD"},{"v":7860,"d":"7,860 RSD"},{"v":55,"d":"55 RSD"}]

{"sheet":"Mesečni troškovi","index":1,"n_rows":62,"n_cols":7,"rows_kept":62}
[null,"Mesečni troškovi"]
[null,"Opis","Kategorija","Predviđeni trošak","Stvarni trošak","Razlika","Pregled stvarnih troškova"]
[null,"Vannastavne aktivnosti","Deca",{"v":40,"d":"40 RSD"},{"v":40,"d":"40 RSD"},{"$f":"DetaljiBudžeta[[#This Row],[Predviđeni trošak]]-DetaljiBudžeta[[#This Row],[Stvarni trošak]]","v":{"v":0,"d":"0 RSD"}},{"$f":"DetaljiBudžeta[[#This Row],[Stvarni trošak]]","v":{"v":40,"d":"40 RSD"}}]
[null,"Zdravlje","Deca",null,null,{"$f":"DetaljiBudžeta[[#This Row],[Predviđeni trošak]]-DetaljiBudžeta[[#This Row],[Stvarni trošak]]","v":{"v":0,"d":"0 RSD"}},{"$f":"DetaljiBudžeta[[#This Row],[Stvarni trošak]]","v":{"v":0,"d":"0 RSD"}}]
[null,"Školski pribor","Deca",null,null,{"$f":"DetaljiBudžeta[[#This Row],[Predviđeni trošak]]-DetaljiBudžeta[[#This Row],[Stvarni trošak]]","v":{"v":0,"d":"0 RSD"}},{"$f":"DetaljiBudžeta[[#This Row],[Stvarni trošak]]","v":{"v":0,"d":"0 RSD"}}]
[null,"Školovanje","Deca",{"v":100,"d":"100 RSD"},{"v":100,"d":"100 RSD"},{"$f":"DetaljiBudžeta[[#This Row],[Predviđeni trošak]]-DetaljiBudžeta[[#This Row],[Stvarni trošak]]","v":{"v":0,"d":"0 RSD"}},{"$f":"DetaljiBudžeta[[#This Row],[Stvarni trošak]]","v":{"v":100,"d":"100 RSD"}}]
[null,"Koncerti","Zabava",{"v":50,"d":"50 RSD"},{"v":40,"d":"40 RSD"},{"$f":"DetaljiBudžeta[[#This Row],[Predviđeni trošak]]-DetaljiBudžeta[[#This Row],[Stvarni trošak]]","v":{"v":10,"d":"10 RSD"}},{"$f":"DetaljiBudžeta[[#This Row],[Stvarni trošak]]","v":{"v":40,"d":"40 RSD"}}]
[null,"Pozorište","Zabava",{"v":200,"d":"200 RSD"},{"v":150,"d":"150 RSD"},{"$f":"DetaljiBudžeta[[#This Row],[Predviđeni trošak]]-DetaljiBudžeta[[#This Row],[Stvarni trošak]]","v":{"v":50,"d":"50 RSD"}},{"$f":"DetaljiBudžeta[[#This Row],[Stvarni trošak]]","v":{"v":150,"d":"150 RSD"}}]
[null,"Filmovi","Zabava",{"v":50,"d":"50 RSD"},{"v":28,"d":"28 RSD"},{"$f":"DetaljiBudžeta[[#This Row],[Predviđeni trošak]]-DetaljiBudžeta[[#This Row],[Stvarni trošak]]","v":{"v":22,"d":"22 RSD"}},{"$f":"DetaljiBudžeta[[#This Row],[Stvarni trošak]]","v":{"v":28,"d":"28 RSD"}}]
[null,"Muzika (CD-ovi, preuzimanja itd.)","Zabava",{"v":50,"d":"50 RSD"},{"v":30,"d":"30 RSD"},{"$f":"DetaljiBudžeta[[#This Row],[Predviđeni trošak]]-DetaljiBudžeta[[#This Row],[Stvarni trošak]]","v":{"v":20,"d":"20 RSD"}},{"$f":"DetaljiBudžeta[[#This Row],[Stvarni trošak]]","v":{"v":30,"d":"30 RSD"}}]
[null,"Sportski događaji","Zabava",{"v":0,"d":"0 RSD"},{"v":40,"d":"40 RSD"},{"$f":"DetaljiBudžeta[[#This Row],[Predviđeni trošak]]-DetaljiBudžeta[[#This Row],[Stvarni trošak]]","v":{"v":-40,"d":"-40 RSD"}},{"$f":"DetaljiBudžeta[[#This Row],[Stvarni trošak]]","v":{"v":40,"d":"40 RSD"}}]
[null,"Video/DVD (kupovina)","Zabava",{"v":20,"d":"20 RSD"},{"v":50,"d":"50 RSD"},{"$f":"DetaljiBudžeta[[#This Row],[Predviđeni trošak]]-DetaljiBudžeta[[#This Row],[Stvarni trošak]]","v":{"v":-30,"d":"-30 RSD"}},{"$f":"DetaljiBudžeta[[#This Row],[Stvarni trošak]]","v":{"v":50,"d":"50 RSD"}}]
[null,"Video/DVD (iznajmljivanje)","Zabava",{"v":30,"d":"30 RSD"},{"v":20,"d":"20 RSD"},{"$f":"DetaljiBudžeta[[#This Row],[Predviđeni trošak]]-DetaljiBudžeta[[#This Row],[Stvarni trošak]]","v":{"v":10,"d":"10 RSD"}},{"$f":"DetaljiBudžeta[[#This Row],[Stvarni trošak]]","v":{"v":20,"d":"20 RSD"}}]
[null,"Restorani","Hrana",{"v":1000,"d":"1,000 RSD"},{"v":1200,"d":"1,200 RSD"},{"$f":"DetaljiBudžeta[[#This Row],[Predviđeni trošak]]-DetaljiBudžeta[[#This Row],[Stvarni trošak]]","v":{"v":-200,"d":"-200 RSD"}},{"$f":"DetaljiBudžeta[[#This Row],[Stvarni trošak]]","v":{"v":1200,"d":"1,200 RSD"}}]
[null,"Namirnice","Hrana",{"v":100,"d":"100 RSD"},{"v":120,"d":"120 RSD"},{"$f":"DetaljiBudžeta[[#This Row],[Predviđeni trošak]]-DetaljiBudžeta[[#This Row],[Stvarni trošak]]","v":{"v":-20,"d":"-20 RSD"}},{"$f":"DetaljiBudžeta[[#This Row],[Stvarni trošak]]","v":{"v":120,"d":"120 RSD"}}]
[null,"Dobrotvorni prilog 1","Pokloni i dobrotvorne organizacije",{"v":75,"d":"75 RSD"},{"v":100,"d":"100 RSD"},{"$f":"DetaljiBudžeta[[#This Row],[Predviđeni trošak]]-DetaljiBudžeta[[#This Row],[Stvarni trošak]]","v":{"v":-25,"d":"-25 RSD"}},{"$f":"DetaljiBudžeta[[#This Row],[Stvarni trošak]]","v":{"v":100,"d":"100 RSD"}}]
[null,"Dobrotvorni prilog 2","Pokloni i dobrotvorne organizacije",{"v":25,"d":"25 RSD"},{"v":25,"d":"25 RSD"},{"$f":"DetaljiBudžeta[[#This Row],[Predviđeni trošak]]-DetaljiBudžeta[[#This Row],[Stvarni trošak]]","v":{"v":0,"d":"0 RSD"}},{"$f":"DetaljiBudžeta[[#This Row],[Stvarni trošak]]","v":{"v":25,"d":"25 RSD"}}]
[null,"Poklon 1","Pokloni i dobrotvorne organizacije",null,null,{"$f":"DetaljiBudžeta[[#This Row],[Predviđeni trošak]]-DetaljiBudžeta[[#This Row],[Stvarni trošak]]","v":{"v":0,"d":"0 RSD"}},{"$f":"DetaljiBudžeta[[#This Row],[Stvarni trošak]]","v":{"v":0,"d":"0 RSD"}}]
[null,"Poklon 2","Pokloni i dobrotvorne organizacije",null,null,{"$f":"DetaljiBudžeta[[#This Row],[Predviđeni trošak]]-DetaljiBudžeta[[#This Row],[Stvarni trošak]]","v":{"v":0,"d":"0 RSD"}},{"$f":"DetaljiBudžeta[[#This Row],[Stvarni trošak]]","v":{"v":0,"d":"0 RSD"}}]
[null,"Kablovska/satelitska televizija","Domaćinstvo",{"v":100,"d":"100 RSD"},{"v":100,"d":"100 RSD"},{"$f":"DetaljiBudžeta[[#This Row],[Predviđeni trošak]]-DetaljiBudžeta[[#This Row],[Stvarni trošak]]","v":{"v":0,"d":"0 RSD"}},{"$f":"DetaljiBudžeta[[#This Row],[Stvarni trošak]]","v":{"v":100,"d":"100 RSD"}}]
[null,"Struja","Domaćinstvo",{"v":45,"d":"45 RSD"},{"v":50,"d":"50 RSD"},{"$f":"DetaljiBudžeta[[#This Row],[Predviđeni trošak]]-DetaljiBudžeta[[#This Row],[Stvarni trošak]]","v":{"v":-5,"d":"-5 RSD"}},{"$f":"DetaljiBudžeta[[#This Row],[Stvarni trošak]]","v":{"v":50,"d":"50 RSD"}}]
[null,"Gas","Domaćinstvo",{"v":300,"d":"300 RSD"},{"v":400,"d":"400 RSD"},{"$f":"DetaljiBudžeta[[#This Row],[Predviđeni trošak]]-DetaljiBudžeta[[#This Row],[Stvarni trošak]]","v":{"v":-100,"d":"-100 RSD"}},{"$f":"DetaljiBudžeta[[#This Row],[Stvarni trošak]]","v":{"v":400,"d":"400 RSD"}}]
[null,"Usluga čišćenja kuće","Domaćinstvo",{"v":200,"d":"200 RSD"},null,{"$f":"DetaljiBudžeta[[#This Row],[Predviđeni trošak]]-DetaljiBudžeta[[#This Row],[Stvarni trošak]]","v":{"v":200,"d":"200 RSD"}},{"$f":"DetaljiBudžeta[[#This Row],[Stvarni trošak]]","v":{"v":0,"d":"0 RSD"}}]
[null,"Održavanje","Domaćinstvo",{"v":200,"d":"200 RSD"},{"v":150,"d":"150 RSD"},{"$f":"DetaljiBudžeta[[#This Row],[Predviđeni trošak]]-DetaljiBudžeta[[#This Row],[Stvarni trošak]]","v":{"v":50,"d":"50 RSD"}},{"$f":"DetaljiBudžeta[[#This Row],[Stvarni trošak]]","v":{"v":150,"d":"150 RSD"}}]
[null,"Hipoteka ili renta","Domaćinstvo",{"v":1700,"d":"1,700 RSD"},{"v":1700,"d":"1,700 RSD"},{"$f":"DetaljiBudžeta[[#This Row],[Predviđeni trošak]]-DetaljiBudžeta[[#This Row],[Stvarni trošak]]","v":{"v":0,"d":"0 RSD"}},{"$f":"DetaljiBudžeta[[#This Row],[Stvarni trošak]]","v":{"v":1700,"d":"1,700 RSD"}}]
[null,"Prirodni gas/nafta","Domaćinstvo",null,null,{"$f":"DetaljiBudžeta[[#This Row],[Predviđeni trošak]]-DetaljiBudžeta[[#This Row],[Stvarni trošak]]","v":{"v":0,"d":"0 RSD"}},{"$f":"DetaljiBudžeta[[#This Row],[Stvarni trošak]]","v":{"v":0,"d":"0 RSD"}}]
[null,"Usluga na mreži/internet","Domaćinstvo",{"v":100,"d":"100 RSD"},{"v":100,"d":"100 RSD"},{"$f":"DetaljiBudžeta[[#This Row],[Predviđeni trošak]]-DetaljiBudžeta[[#This Row],[Stvarni trošak]]","v":{"v":0,"d":"0 RSD"}},{"$f":"DetaljiBudžeta[[#This Row],[Stvarni trošak]]","v":{"v":100,"d":"100 RSD"}}]
[null,"Telefon (mobilni)","Domaćinstvo",{"v":60,"d":"60 RSD"},{"v":60,"d":"60 RSD"},{"$f":"DetaljiBudžeta[[#This Row],[Predviđeni trošak]]-DetaljiBudžeta[[#This Row],[Stvarni trošak]]","v":{"v":0,"d":"0 RSD"}},{"$f":"DetaljiBudžeta[[#This Row],[Stvarni trošak]]","v":{"v":60,"d":"60 RSD"}}]
[null,"Telefon (kućni)","Domaćinstvo",{"v":35,"d":"35 RSD"},{"v":39,"d":"39 RSD"},{"$f":"DetaljiBudžeta[[#This Row],[Predviđeni trošak]]-DetaljiBudžeta[[#This Row],[Stvarni trošak]]","v":{"v":-4,"d":"-4 RSD"}},{"$f":"DetaljiBudžeta[[#This Row],[Stvarni trošak]]","v":{"v":39,"d":"39 RSD"}}]
[null,"Pribor","Domaćinstvo",{"v":40,"d":"40 RSD"},{"v":55,"d":"55 RSD"},{"$f":"DetaljiBudžeta[[#This Row],[Predviđeni trošak]]-DetaljiBudžeta[[#This Row],[Stvarni trošak]]","v":{"v":-15,"d":"-15 RSD"}},{"$f":"DetaljiBudžeta[[#This Row],[Stvarni trošak]]","v":{"v":55,"d":"55 RSD"}}]
[null,"Uklanjanje i recikliranje otpada","Domaćinstvo",{"v":25,"d":"25 RSD"},{"v":22,"d":"22 RSD"},{"$f":"DetaljiBudžeta[[#This Row],[Predviđeni trošak]]-DetaljiBudžeta[[#This Row],[Stvarni trošak]]","v":{"v":3,"d":"3 RSD"}},{"$f":"DetaljiBudžeta[[#This Row],[Stvarni trošak]]","v":{"v":22,"d":"22 RSD"}}]
[null,"Voda i kanalizacija","Domaćinstvo",{"v":25,"d":"25 RSD"},{"v":26,"d":"26 RSD"},{"$f":"DetaljiBudžeta[[#This Row],[Predviđeni trošak]]-DetaljiBudžeta[[#This Row],[Stvarni trošak]]","v":{"v":-1,"d":"-1 RSD"}},{"$f":"DetaljiBudžeta[[#This Row],[Stvarni trošak]]","v":{"v":26,"d":"26 RSD"}}]
[null,"Zdravstveno","Osiguranje",{"v":400,"d":"400 RSD"},{"v":400,"d":"400 RSD"},{"$f":"DetaljiBudžeta[[#This Row],[Predviđeni trošak]]-DetaljiBudžeta[[#This Row],[Stvarni trošak]]","v":{"v":0,"d":"0 RSD"}},{"$f":"DetaljiBudžeta[[#This Row],[Stvarni trošak]]","v":{"v":400,"d":"400 RSD"}}]
[null,"Kuća","Osiguranje",{"v":400,"d":"400 RSD"},{"v":400,"d":"400 RSD"},{"$f":"DetaljiBudžeta[[#This Row],[Predviđeni trošak]]-DetaljiBudžeta[[#This Row],[Stvarni trošak]]","v":{"v":0,"d":"0 RSD"}},{"$f":"DetaljiBudžeta[[#This Row],[Stvarni trošak]]","v":{"v":400,"d":"400 RSD"}}]
[null,"Život","Osiguranje",{"v":100,"d":"100 RSD"},{"v":100,"d":"100 RSD"},{"$f":"DetaljiBudžeta[[#This Row],[Predviđeni trošak]]-DetaljiBudžeta[[#This Row],[Stvarni trošak]]","v":{"v":0,"d":"0 RSD"}},{"$f":"DetaljiBudžeta[[#This Row],[Stvarni trošak]]","v":{"v":100,"d":"100 RSD"}}]
[null,"Kreditna kartica 1","Zajmovi",{"v":200,"d":"200 RSD"},{"v":200,"d":"200 RSD"},{"$f":"DetaljiBudžeta[[#This Row],[Predviđeni trošak]]-DetaljiBudžeta[[#This Row],[Stvarni trošak]]","v":{"v":0,"d":"0 RSD"}},{"$f":"DetaljiBudžeta[[#This Row],[Stvarni trošak]]","v":{"v":200,"d":"200 RSD"}}]
[null,"Kreditna kartica 2","Zajmovi",null,null,{"$f":"DetaljiBudžeta[[#This Row],[Predviđeni trošak]]-DetaljiBudžeta[[#This Row],[Stvarni trošak]]","v":{"v":0,"d":"0 RSD"}},{"$f":"DetaljiBudžeta[[#This Row],[Stvarni trošak]]","v":{"v":0,"d":"0 RSD"}}]
[null,"Kreditna kartica 3","Zajmovi",null,null,{"$f":"DetaljiBudžeta[[#This Row],[Predviđeni trošak]]-DetaljiBudžeta[[#This Row],[Stvarni trošak]]","v":{"v":0,"d":"0 RSD"}},{"$f":"DetaljiBudžeta[[#This Row],[Stvarni trošak]]","v":{"v":0,"d":"0 RSD"}}]
[null,"Lično","Zajmovi",null,null,{"$f":"DetaljiBudžeta[[#This Row],[Predviđeni trošak]]-DetaljiBudžeta[[#This Row],[Stvarni trošak]]","v":{"v":0,"d":"0 RSD"}},{"$f":"DetaljiBudžeta[[#This Row],[Stvarni trošak]]","v":{"v":0,"d":"0 RSD"}}]
[null,"Studentski","Zajmovi",null,null,{"$f":"DetaljiBudžeta[[#This Row],[Predviđeni trošak]]-DetaljiBudžeta[[#This Row],[Stvarni trošak]]","v":{"v":0,"d":"0 RSD"}},{"$f":"DetaljiBudžeta[[#This Row],[Stvarni trošak]]","v":{"v":0,"d":"0 RSD"}}]
[null,"Odeća","Lična nega",{"v":150,"d":"150 RSD"},{"v":140,"d":"140 RSD"},{"$f":"DetaljiBudžeta[[#This Row],[Predviđeni trošak]]-DetaljiBudžeta[[#This Row],[Stvarni trošak]]","v":{"v":10,"d":"10 RSD"}},{"$f":"DetaljiBudžeta[[#This Row],[Stvarni trošak]]","v":{"v":140,"d":"140 RSD"}}]
[null,"Hemijsko čišćenje","Lična nega",null,null,{"$f":"DetaljiBudžeta[[#This Row],[Predviđeni trošak]]-DetaljiBudžeta[[#This Row],[Stvarni trošak]]","v":{"v":0,"d":"0 RSD"}},{"$f":"DetaljiBudžeta[[#This Row],[Stvarni trošak]]","v":{"v":0,"d":"0 RSD"}}]
[null,"Kosa/nokti","Lična nega",null,null,{"$f":"DetaljiBudžeta[[#This Row],[Predviđeni trošak]]-DetaljiBudžeta[[#This Row],[Stvarni trošak]]","v":{"v":0,"d":"0 RSD"}},{"$f":"DetaljiBudžeta[[#This Row],[Stvarni trošak]]","v":{"v":0,"d":"0 RSD"}}]
[null,"Teretana","Lična nega",null,null,{"$f":"DetaljiBudžeta[[#This Row],[Predviđeni trošak]]-DetaljiBudžeta[[#This Row],[Stvarni trošak]]","v":{"v":0,"d":"0 RSD"}},{"$f":"DetaljiBudžeta[[#This Row],[Stvarni trošak]]","v":{"v":0,"d":"0 RSD"}}]
[null,"Zdravstvo","Lična nega",null,null,{"$f":"DetaljiBudžeta[[#This Row],[Predviđeni trošak]]-DetaljiBudžeta[[#This Row],[Stvarni trošak]]","v":{"v":0,"d":"0 RSD"}},{"$f":"DetaljiBudžeta[[#This Row],[Stvarni trošak]]","v":{"v":0,"d":"0 RSD"}}]
[null,"Hrana","Ljubimci",{"v":150,"d":"150 RSD"},{"v":75,"d":"75 RSD"},{"$f":"DetaljiBudžeta[[#This Row],[Predviđeni trošak]]-DetaljiBudžeta[[#This Row],[Stvarni trošak]]","v":{"v":75,"d":"75 RSD"}},{"$f":"DetaljiBudžeta[[#This Row],[Stvarni trošak]]","v":{"v":75,"d":"75 RSD"}}]
[null,"Doterivanje","Ljubimci",{"v":20,"d":"20 RSD"},{"v":25,"d":"25 RSD"},{"$f":"DetaljiBudžeta[[#This Row],[Predviđeni trošak]]-DetaljiBudžeta[[#This Row],[Stvarni trošak]]","v":{"v":-5,"d":"-5 RSD"}},{"$f":"DetaljiBudžeta[[#This Row],[Stvarni trošak]]","v":{"v":25,"d":"25 RSD"}}]
[null,"Zdravstvo","Ljubimci",null,null,{"$f":"DetaljiBudžeta[[#This Row],[Predviđeni trošak]]-DetaljiBudžeta[[#This Row],[Stvarni trošak]]","v":{"v":0,"d":"0 RSD"}},{"$f":"DetaljiBudžeta[[#This Row],[Stvarni trošak]]","v":{"v":0,"d":"0 RSD"}}]
[null,"Igračke","Ljubimci",null,null,{"$f":"DetaljiBudžeta[[#This Row],[Predviđeni trošak]]-DetaljiBudžeta[[#This Row],[Stvarni trošak]]","v":{"v":0,"d":"0 RSD"}},{"$f":"DetaljiBudžeta[[#This Row],[Stvarni trošak]]","v":{"v":0,"d":"0 RSD"}}]
[null,"Investicioni nalog","Štednja ili ulaganja",{"v":200,"d":"200 RSD"},{"v":200,"d":"200 RSD"},{"$f":"DetaljiBudžeta[[#This Row],[Predviđeni trošak]]-DetaljiBudžeta[[#This Row],[Stvarni trošak]]","v":{"v":0,"d":"0 RSD"}},{"$f":"DetaljiBudžeta[[#This Row],[Stvarni trošak]]","v":{"v":200,"d":"200 RSD"}}]
[null,"Penzioni račun","Štednja ili ulaganja",null,null,{"$f":"DetaljiBudžeta[[#This Row],[Predviđeni trošak]]-DetaljiBudžeta[[#This Row],[Stvarni trošak]]","v":{"v":0,"d":"0 RSD"}},{"$f":"DetaljiBudžeta[[#This Row],[Stvarni trošak]]","v":{"v":0,"d":"0 RSD"}}]
[null,"Savezni","Porezi",{"v":300,"d":"300 RSD"},{"v":300,"d":"300 RSD"},{"$f":"DetaljiBudžeta[[#This Row],[Predviđeni trošak]]-DetaljiBudžeta[[#This Row],[Stvarni trošak]]","v":{"v":0,"d":"0 RSD"}},{"$f":"DetaljiBudžeta[[#This Row],[Stvarni trošak]]","v":{"v":300,"d":"300 RSD"}}]
[null,"Lokalni","Porezi",null,null,{"$f":"DetaljiBudžeta[[#This Row],[Predviđeni trošak]]-DetaljiBudžeta[[#This Row],[Stvarni trošak]]","v":{"v":0,"d":"0 RSD"}},{"$f":"DetaljiBudžeta[[#This Row],[Stvarni trošak]]","v":{"v":0,"d":"0 RSD"}}]
[null,"Državni","Porezi",null,null,{"$f":"DetaljiBudžeta[[#This Row],[Predviđeni trošak]]-DetaljiBudžeta[[#This Row],[Stvarni trošak]]","v":{"v":0,"d":"0 RSD"}},{"$f":"DetaljiBudžeta[[#This Row],[Stvarni trošak]]","v":{"v":0,"d":"0 RSD"}}]
[null,"Naknada za autobus/taksi","Prevoz",{"v":100,"d":"100 RSD"},{"v":150,"d":"150 RSD"},{"$f":"DetaljiBudžeta[[#This Row],[Predviđeni trošak]]-DetaljiBudžeta[[#This Row],[Stvarni trošak]]","v":{"v":-50,"d":"-50 RSD"}},{"$f":"DetaljiBudžeta[[#This Row],[Stvarni trošak]]","v":{"v":150,"d":"150 RSD"}}]
[null,"Gorivo","Prevoz",{"v":450,"d":"450 RSD"},{"v":400,"d":"400 RSD"},{"$f":"DetaljiBudžeta[[#This Row],[Predviđeni trošak]]-DetaljiBudžeta[[#This Row],[Stvarni trošak]]","v":{"v":50,"d":"50 RSD"}},{"$f":"DetaljiBudžeta[[#This Row],[Stvarni trošak]]","v":{"v":400,"d":"400 RSD"}}]
[null,"Osiguranje","Prevoz",{"v":300,"d":"300 RSD"},{"v":300,"d":"300 RSD"},{"$f":"DetaljiBudžeta[[#This Row],[Predviđeni trošak]]-DetaljiBudžeta[[#This Row],[Stvarni trošak]]","v":{"v":0,"d":"0 RSD"}},{"$f":"DetaljiBudžeta[[#This Row],[Stvarni trošak]]","v":{"v":300,"d":"300 RSD"}}]
[null,"Vozačka dozvola ","Prevoz",{"v":25,"d":"25 RSD"},{"v":25,"d":"25 RSD"},{"$f":"DetaljiBudžeta[[#This Row],[Predviđeni trošak]]-DetaljiBudžeta[[#This Row],[Stvarni trošak]]","v":{"v":0,"d":"0 RSD"}},{"$f":"DetaljiBudžeta[[#This Row],[Stvarni trošak]]","v":{"v":25,"d":"25 RSD"}}]
[null,"Održavanje","Prevoz",{"v":100,"d":"100 RSD"},{"v":50,"d":"50 RSD"},{"$f":"DetaljiBudžeta[[#This Row],[Predviđeni trošak]]-DetaljiBudžeta[[#This Row],[Stvarni trošak]]","v":{"v":50,"d":"50 RSD"}},{"$f":"DetaljiBudžeta[[#This Row],[Stvarni trošak]]","v":{"v":50,"d":"50 RSD"}}]
[null,"Naknade za parkiranje","Prevoz",null,null,{"$f":"DetaljiBudžeta[[#This Row],[Predviđeni trošak]]-DetaljiBudžeta[[#This Row],[Stvarni trošak]]","v":{"v":0,"d":"0 RSD"}},{"$f":"DetaljiBudžeta[[#This Row],[Stvarni trošak]]","v":{"v":0,"d":"0 RSD"}}]
[null,"Otplata vozila","Prevoz",{"v":450,"d":"450 RSD"},{"v":450,"d":"450 RSD"},{"$f":"DetaljiBudžeta[[#This Row],[Predviđeni trošak]]-DetaljiBudžeta[[#This Row],[Stvarni trošak]]","v":{"v":0,"d":"0 RSD"}},{"$f":"DetaljiBudžeta[[#This Row],[Stvarni trošak]]","v":{"v":450,"d":"450 RSD"}}]
[null,"Zbir",null,{"$f":"SUBTOTAL(109,DetaljiBudžeta[Predviđeni trošak])","v":{"v":7915,"d":"7,915 RSD"}},{"$f":"SUBTOTAL(109,DetaljiBudžeta[Stvarni trošak])","v":{"v":7860,"d":"7,860 RSD"}},{"$f":"SUBTOTAL(109,DetaljiBudžeta[Razlika])","v":{"v":55,"d":"55 RSD"}}]

{"sheet":"Dodatni podaci","index":2,"n_rows":15,"n_cols":5,"rows_kept":15}
[null,"Izvedena tabela za grafikon „Pregled budžeta“",null,null,"Lista za pronalaženje kategorija detalja budžeta"]
[null,"Kategorija","Trošak ",null,"Pronalaženje kategorija budžeta"]
[null,"Deca",140,null,"Deca"]
[null,"Zabava",358,null,"Domaćinstvo"]
[null,"Hrana",1320,null,"Hrana"]
[null,"Pokloni i dobrotvorne organizacije",125,null,"Lična nega"]
[null,"Domaćinstvo",2702,null,"Ljubimci"]
[null,"Osiguranje",900,null,"Osiguranje"]
[null,"Štednja ili ulaganja",200,null,"Pokloni i dobrotvorne organizacije"]
[null,"Lična nega",140,null,"Porezi"]
[null,"Ljubimci",100,null,"Prevoz"]
[null,"Zajmovi",200,null,"Štednja ili ulaganja"]
[null,"Porezi",300,null,"Zabava"]
[null,"Prevoz",1375,null,"Zajmovi"]
[null,"Konačni zbir",7860]